[Event "Mitropa Cup Open 2024"]
[Site "Apolda"]
[Date "2024.02.17"]
[Round "3.7"]
[White "Tomulic, Teo"]
[Black "Vanczak, Tamas"]
[Result "0-1"]
[ECO "B95"]
[WhiteElo "2386"]
[BlackElo "2431"]
[Annotator "TA"]
[PlyCount "88"]
[EventDate "2024.02.15"]
[EventType "team-tourn"]
[EventCountry "GER"]
[SourceTitle "playchess.com"]
[Source "ChessBase"]
[SourceQuality "1"]
[WhiteTeam "Croatia"]
[BlackTeam "Hungary"]
[WhiteTeamCountry "CRO"]
[BlackTeamCountry "HUN"]
[TimeControl "40/5400+30:1800+30"]

{[%evp 32,88,20,-73,-47,-60,-51,-72,-64,-70,-45,-46,-25,-34,0,-22,0,0,0,0,0,0,0,0,121,-36,-31,-247,-243,-375,0,-14,-18,-445,-470,-491,-488,-1469,-1469,-1447,-1432,-2110,-1850,-2074,-1983,-5808,-6223,-29983,-29984,-29986,-29987,-29987,-29988,-29988,-29960,-29960,-680,-677,-664]} 1. e4 {[%emt 0:00:02]} c5 {[%emt 0:00:11]} 2. Nf3 {[%emt 0:00:27]} d6 {[%emt 0:00:11]} 3. d4 {[%emt 0:00:18]} cxd4 {[%emt 0:00:07]} 4. Nxd4 {[%emt 0:00:05]} Nf6 {[%emt 0:00:06]} 5. Nc3 {[%emt 0:00:04]} a6 {[%emt 0:00:05]} 6. Bg5 {[%emt 0:01:11]} Nbd7 {[%emt 0:00:50]} 7. f3 {[%emt 0:10:24]} Qc7 {[%emt 0:03:08]} 8. Qd2 {[%emt 0:01:46]} e6 {[%emt 0:04:06]} 9. O-O-O {[%emt 0:08:23]} Be7 {[%emt 0:04:48]} 10. h4 {[%emt 0:00:14]} O-O {[%emt 0:02:19]} 11. g4 {[%emt 0:05:29] B95: Sicilian Najdorf: 6 Bg5 e6, unusual White 7th moves.} b5 {[%emt 0:01:56]} 12. h5 {[%emt 0:07:12]} b4 {[%emt 0:08:51]} 13. Nb1 {[%emt 0:00:52]} Nc5 {[%emt 0:06:07]} 14. Be3 {[%emt 0:03:13]} e5 {[%emt 0:10:57]} 15. Nb3 {[%emt 0:02:39]} Nxb3+ {[%emt 0:04:53]} 16. axb3 {[%emt 0:00:06]} d5 $146 {[%emt 0:07:01]} ({Predecessor:} 16... Be6 17. Qd3 d5 18. Nd2 Rac8 19. Rh2 Rfd8 20. exd5 Rxd5 21. Qc4 Rc5 22. Qd3 Rd5 {0-1 Chistiakov,A (2005)-Briukhovich,A Kurass Memorial op 05th 2004 (1)}) 17. g5 {[%emt 0:42:58]} (17. Qh2 $1 $11 {keeps the balance.}) 17... d4 $1 $17 {[%emt 0:00:09]} 18. gxf6 {[%emt 0:00:54]} dxe3 {[%emt 0:00:07]} 19. Qe1 {[%emt 0:02:49]} Bxf6 {[%emt 0:01:14]} (19... gxf6 $2 20. Qg3+ (20. Qxe3 Qc5 $11) 20... Kh8 21. Rg1 $18) 20. Qxb4 {[%emt 0:00:04]} Be6 {[%emt 0:16:54]} 21. Nc3 $1 {[%emt 0:01:42]} Rfb8 {[%emt 0:03:48]} 22. Qa4 {[%emt 0:01:34]} Qc5 {[%emt 0:05:16]} 23. Kb1 {[%emt 0:04:19]} Rb4 {[%emt 0:09:23]} 24. Qa3 {[%emt 0:00:01]} a5 {[%emt 0:00:37]} 25. Nd5 {[%emt 0:01:13]} Bxd5 {[%emt 0:02:09]} 26. Rxd5 {[%emt 0:00:11]} Qb6 {[%emt 0:00:35]} 27. Bc4 {[%emt 0:03:26]} h6 {[%emt 0:03:38]} (27... Qa7 $11 {remains equal.}) 28. Re1 $2 {[%emt 0:00:17]} (28. c3 $16 Rxc4 29. bxc4) 28... Be7 $15 {[%emt 0:02:17]} 29. Qa2 $2 {[%emt 0:00:56]} (29. c3 $15 Rxc4 30. Qxe7 Rxc3 (30... Qxb3 31. Rg1 $11) 31. Qxe5 (31. bxc3 $2 Qxb3+ 32. Kc1 Qxc3+ 33. Kd1 Rc8 $19)) 29... e2 $1 $19 {[%emt 0:01:00]} 30. Bxe2 {[%emt 0:00:33] [#]} (30. c3 $2 Qf2 (30... Rxc4 $2 31. Rxe2 Qg1+ 32. Kc2 $19) 31. Rxe2 Qf1+ 32. Kc2 Rxc4 $19) (30. Rd2 {was the only chance.} Bh4 31. Rdxe2 Bxe1 32. Rxe1) 30... Qf2 $2 {[%emt 0:00:37]} ({Black should play} 30... a4 $1 $19 31. c3 Rxb3 (31... axb3 $2 32. Qxa8+ Qb8 33. Qxb8+ Rxb8 34. Rxe5 $18)) 31. Rdd1 $11 {[%emt 0:00:07]} a4 {[%emt 0:00:34]} 32. Bc4 $2 {[%emt 0:00:52][%mdl 8192] [#]} (32. c3 $1 $11 {and White is okay.} Rxb3 (32... axb3 $2 33. Qxa8+ Kh7 34. cxb4 $18) 33. Bc4) 32... Ra7 $1 $19 {[%emt 0:00:29]} 33. Re2 {[%emt 0:01:42]} Qb6 {[%emt 0:00:26]} (33... Qxf3 $2 34. Ree1 (34. c3 $2 Rxc4 35. Ree1 Rxe4 $19) 34... Bh4 (34... Qxh5 35. c3 $11) 35. Rf1 Qxe4 (35... Qxh5 36. Qa3 $16) 36. Bd5 $19) 34. Bxf7+ {[%emt 0:00:55]} (34. bxa4 $142 Rbxa4 35. Bxf7+ Kf8 36. Qxa4 Rxa4 37. Bb3) 34... Kxf7 $19 {[%emt 0:00:33]} 35. bxa4+ {[%emt 0:00:05]} Kf8 {[%emt 0:00:15]} 36. c3 {[%emt 0:00:29]} Rbxa4 {[%emt 0:00:26]} 37. Qd5 {[%emt 0:00:06]} R4a5 {[%emt 0:00:40]} 38. Qc4 {[%emt 0:00:38]} Rc5 {[%emt 0:01:07]} 39. Qd3 {[%emt 0:00:15]} Qb3 {[%emt 0:00:19]} 40. Qc2 {[%emt 0:00:40]} Qa2+ {[%emt 0:00:07]} 41. Kc1 {[%emt 0:30:13]} Bg5+ {[%emt 0:30:13]} 42. Rdd2 {[%emt 0:00:12]} Qa1+ {[%emt 0:00:14]} 43. Qb1 {[%emt 0:00:01]} Qxb1+ {[%emt 0:00:07]} (43... Bxd2+ $142 44. Rxd2 Rxc3+ 45. bxc3 Qxc3+ 46. Kd1 Qxf3+ 47. Kc1 Qf1+ (47... Qxh5 $2 {is the wrong capture.} 48. Qb8+ Qe8 49. Qxa7 $18) (47... Rc7+ $2 48. Qc2 $19) 48. Rd1 Qf4+ (48... Rc7+ $2 49. Qc2 $19) 49. Rd2 Rc7+ 50. Qc2 Rxc2+ 51. Kxc2 Qxe4+ 52. Kd1 Qg4+ 53. Kc2 Qc4+ (53... Qxh5 $2 54. Rf2+ Kg8 55. Rd2 $19) 54. Kd1 Qf1+ 55. Kc2 e4 56. Rd8+ Ke7 57. Rd4 Qf2+ 58. Kc3 Qf3+ 59. Kc2 e3 (59... Qxh5 $2 60. Rxe4+ Kf7 61. Rd4 $19) 60. Kc3 e2+ (60... Qxh5 61. Re4+ Kf6 62. Rxe3 $19) 61. Kd2 e1=R (61... Qxh5 $2 62. Re4+ Kf6 63. Re3 $19) 62. Kxe1 Qe3+ (62... Qxh5 $2 63. Kd2 $19) 63. Kd1 Qxd4+ 64. Ke2 Kf6 65. Kf3 Kf5 66. Kg3 Qe3+ 67. Kh2 Qg5 68. Kh1 Ke4 (68... Qxh5+ {gets mated.} 69. Kg2 Qe2+ 70. Kh1 Ke4 71. Kg1 Kf3 72. Kh1 Qg2#) 69. Kh2 Kf3 70. Kh3 Qxh5#) 44. Kxb1 $19 {[%emt 0:00:04]} Bxd2 {[%emt 0:00:05]} 0-1

[Event "Mitropa Cup Open 2024"]
[Site "Apolda"]
[Date "2024.02.17"]
[Round "3.8"]
[White "Karacsonyi, Gellert"]
[Black "Novosel, Lovro"]
[Result "1-0"]
[ECO "B94"]
[WhiteElo "2398"]
[BlackElo "2373"]
[Annotator "RC"]
[PlyCount "67"]
[EventDate "2024.02.15"]
[EventType "team-tourn"]
[EventCountry "GER"]
[SourceTitle "playchess.com"]
[Source "ChessBase"]
[SourceQuality "1"]
[WhiteTeam "Hungary"]
[BlackTeam "Croatia"]
[WhiteTeamCountry "HUN"]
[BlackTeamCountry "CRO"]
[TimeControl "40/5400+30:1800+30"]

1. e4 {[%emt 0:00:05]} c5 {[%emt 0:00:17]} 2. Nf3 {[%emt 0:00:09]} d6 {[%emt 0:00:13]} 3. d4 {[%emt 0:00:19]} cxd4 {[%emt 0:00:06]} 4. Nxd4 {[%emt 0:00:05]} Nf6 {[%emt 0:00:05]} 5. Nc3 {[%emt 0:00:08]} a6 {[%emt 0:00:04]} 6. Bg5 {[%emt 0:00:20]} Nbd7 {[%emt 0:00:32]} 7. Qe2 {[%emt 0:01:11]} h6 {[%emt 0:00:41]} 8. Bh4 {[%emt 0:01:43]} g6 {[%emt 0:00:16]} 9. f4 {[%emt 0:02:02]} e5 {[%emt 0:00:38]} 10. fxe5 {[%emt 0:00:22]} dxe5 {[%emt 0:00:05]} 11. O-O-O {[%emt 0:02:46]} Qc7 {[%emt 0:00:08]} 12. Nb3 {[%emt 0:01:30]} b5 {[%emt 0:00:17]} 13. Kb1 {[%emt 0:01:32]} Be7 {[%emt 0:06:10]} 14. Qf3 {[%emt 0:01:35]} Bb7 {[%emt 0:03:25]} 15. a3 {[%emt 0:00:39]} Rc8 {[%emt 0:07:06]} 16. Bd3 {[%emt 0:00:31]} O-O {[%emt 0:11:46]} 17. Rhf1 {[%emt 0:00:26]} Bc6 {[%emt 0:04:44]} 18. Be1 {[%emt 0:02:57]} Nb6 {[%emt 0:04:50]} 19. h3 {[%emt 0:16:57]} Nc4 {[%emt 0:12:30]} 20. Nd5 {[%emt 0:19:32]} Nxd5 {[%emt 0:16:01]} 21. exd5 {[%emt 0:00:12]} Bd7 {[%emt 0:00:08]} 22. g4 {[%emt 0:03:01]} a5 {[%emt 0:03:47]} 23. Qe2 {[%emt 0:12:31]} a4 {[%emt 0:04:20]} 24. Nc1 {[%emt 0:02:00]} Bc5 {[%emt 0:07:54]} 25. Bxc4 {[%emt 0:03:58]} bxc4 {[%emt 0:00:04]} 26. Bc3 {[%emt 0:00:08]} f6 {[%emt 0:04:02]} 27. Qxc4 {[%emt 0:02:30]} Qb6 {[%emt 0:00:21]} 28. Qe4 {[%emt 0:00:16]} Kg7 {[%emt 0:00:52]} 29. Nd3 {[%emt 0:01:32]} Bxa3 {[%emt 0:02:19]} 30. Nxe5 {[%emt 0:08:31]} Bf5 {[%emt 0:01:15]} 31. Nc4 {[%emt 0:02:53]} Qa6 {[%emt 0:06:16]} 32. gxf5 {[%emt 0:01:22]} Rxc4 {[%emt 0:00:05]} 33. Qd3 {[%emt 0:02:20]} Qb5 {[%emt 0:01:08]} 34. Rf4 {[%emt 0:01:50]} 1-0

[Event "Mitropa Cup Open 2024"]
[Site "Apolda"]
[Date "2024.02.17"]
[Round "3.9"]
[White "Girel, Joseph"]
[Black "Sahidi, Samir"]
[Result "1-0"]
[ECO "D46"]
[WhiteElo "2492"]
[BlackElo "2478"]
[Annotator "TA"]
[PlyCount "82"]
[EventDate "2024.02.15"]
[EventType "team-tourn"]
[EventCountry "GER"]
[SourceTitle "playchess.com"]
[Source "ChessBase"]
[SourceQuality "1"]
[WhiteTeam "France"]
[BlackTeam "Slovakia"]
[WhiteTeamCountry "FRA"]
[BlackTeamCountry "SVK"]
[TimeControl "40/5400+30:1800+30"]

{[%evp 21,82,5,5,8,4,18,17,-7,0,-6,0,-11,-1,-20,-8,-15,0,-47,-36,-45,-41,-50,99,106,278,268,280,284,170,85,180,186,168,163,108,0,236,173,140,175,156,143,327,334,359,344,621,337,544,295,292,286,284,173,887,823,29965,29967,29970,29971,29980,29981,29999]} 1. d4 {[%emt 0:00:04]} d5 {[%emt 0:00:10]} 2. c4 {[%emt 0:00:31]} c6 {[%emt 0:00:12]} 3. Nf3 {[%emt 0:00:39]} Nf6 {[%emt 0:00:12]} 4. e3 {[%emt 0:01:15]} e6 {[%emt 0:00:49]} 5. Nc3 {[%emt 0:00:46]} Nbd7 {[%emt 0:00:28]} 6. Qc2 {[%emt 0:01:33]} Bd6 {[%emt 0:00:09]} 7. Bd3 {[%emt 0:00:25]} O-O {[%emt 0:01:10]} 8. O-O {[%emt 0:00:19]} dxc4 {[%emt 0:03:17]} 9. Bxc4 {[%emt 0:00:13]} b5 {[%emt 0:00:16]} 10. Be2 {[%emt 0:01:26]} Bb7 {[%emt 0:00:06]} 11. e4 {[%emt 0:01:17]} e5 $1 {[%emt 0:00:21]} 12. dxe5 {[%emt 0:00:27]} Nxe5 {[%emt 0:00:55]} 13. Nd4 {[%emt 0:00:14]} (13. Nh4 {simplifies} Bc8 14. Nf5 Bxf5 15. exf5 Re8 16. Rd1) 13... Neg4 {[%emt 0:12:05]} 14. Nf5 {[%emt 0:00:12] The position is equal.} (14. g3 $5) 14... Bxh2+ {[%emt 0:05:37]} (14... Nxh2 $2 15. Rd1 Qb8 16. Rxd6 $18) 15. Kh1 {[%emt 0:00:05]} Bb8 {[%emt 0:14:56]} 16. Bg5 {[%emt 0:00:10] [#] f4 would now be deadly.} Bc8 $1 {[%emt 0:15:05]} 17. Rad1 $1 {[%emt 0:00:15]} (17. Bxg4 Qc7 18. g3 (18. Bf4 $2 Qxf4 19. g3 Qxg4 $19) 18... Nxg4 $17) 17... Qc7 {[%emt 0:00:42]} 18. Nd6 {[%emt 0:00:09][%cal Oe4e5] Active counter play!} Be6 {[%emt 0:14:12]} 19. e5 {[%emt 0:00:57]} Nxe5 $15 {[%emt 0:01:23]} 20. Bxf6 {[%emt 0:00:34]} gxf6 {[%emt 0:00:06]} 21. f4 {[%emt 0:01:04]} Ng4 {[%emt 0:02:55]} (21... Ng6 $1 $15 22. Nce4 Qe7) 22. Qe4 $16 {[%emt 1:00:57] [#] Strongly threatening Bxg4.} f5 {[%emt 0:16:26]} 23. Nxf5 $18 {[%emt 0:01:02] A dynamic duo of knights.} Nf6 {[%emt 0:00:05]} 24. Qd3 {[%emt 0:05:55] Intending Qg3+ and mate.} Ne8 {[%emt 0:00:48]} 25. Rf3 {[%emt 0:04:01]} (25. Bg4 $18 Kh8 26. Ne4) 25... f6 {[%emt 0:00:23]} (25... Kh8 $16 {keeps fighting.}) 26. Qe4 {[%emt 0:02:55]} Bxf5 {[%emt 0:00:51]} 27. Qxf5 {[%emt 0:00:07]} Ng7 {[%emt 0:00:24]} 28. Qc5 {[%emt 0:06:58]} (28. Qh3 $16 {And now Rd7 would win.} Qc8 29. Qxc8 Rxc8 30. Rd7) 28... f5 $2 {[%emt 0:02:28]} (28... a6 $11 {and Black has nothing to worry.}) 29. Nxb5 cxb5 30. Qd5+ {[%emt 0:01:56]} Kh8 {[%emt 0:03:53][%cal Oc7c2]} 31. Qxa8 {[%emt 0:00:15]} Qc2 $2 {[%emt 0:00:09]} (31... Qe7 $16 {is a better defense.}) 32. Re3 {[%emt 0:03:20][%cal Bf3e3,Be3e7,Be7b7][%mdl 32]} Qxb2 {[%emt 0:00:41]} 33. g3 {[%emt 0:01:34][%cal Bg2g3,Bg3f4][%mdl 32] Hoping for Qc6.} Qxa2 $2 {[%emt 0:01:26]} (33... Qf6 34. Qf3 (34. Bxb5 Bxf4 $15) 34... h5 35. Bxb5 (35. Rd7 Rd8 $18) 35... Kh7) 34. Qd5 {[%emt 0:02:06]} Qb2 {[%emt 0:01:01]} (34... Qxd5+ 35. Rxd5 Kg8) 35. Re7 {[%emt 0:00:57]} Qf6 {[%emt 0:00:59]} 36. Rb7 {[%emt 0:02:18]} Ne6 {[%emt 0:01:21]} 37. Qf3 $40 {[%emt 0:00:59][%cal Od1d7][%mdl 128] aiming for Rdd7! White attacks with force.} (37. Rxb5 Bxf4 (37... Nc7 38. Qf3 $11) 38. gxf4 Qh4+ 39. Kg1 Rg8+ 40. Kf1 Qh3+ 41. Ke1 Qg3+ 42. Kd2 Rd8 $11 (42... Nxf4 $2 43. Qe5+ Qg7 44. Qxf4 $18) (42... Nxf4 $2 43. Qe5+ Qg7 44. Qxf4 $18)) 37... Nxf4 $2 {[%emt 0:01:55]} (37... Bxf4 38. Rdd7 (38. gxf4 Qh4+ 39. Kg1 Rg8+ 40. Kf1 Rg3 $11) 38... Bc7 39. Rdxc7 (39. Rbxc7 Nxc7 40. Rxc7 a5 $18) 39... Nxc7) 38. gxf4 {[%emt 0:00:39][%cal Of3h3] White wants to mate with Qh3!} Qh4+ {[%emt 0:01:03]} 39. Kg2 {[%emt 0:00:19] White mates.} Rg8+ {[%emt 0:00:28]} 40. Kf1 {[%emt 0:00:04]} Be5 {[%emt 0:00:32]} 41. Rdd7 {[%emt 0:31:21]} Qd8 {[%emt 0:31:01] Weighted Error Value: White=0.38/Black=0.72.  Loses game:     	---       	Black=3      Mistake:       	White=3     	Black=5      Inaccurate:     	White=2     	Black=1      OK:         	White=9     	Black=8      Best:        	White=4     	Black=5      Strong:       	White=1     	Black=1} 1-0

[Event "Mitropa Cup Open 2024"]
[Site "Apolda"]
[Date "2024.02.17"]
[Round "3.10"]
[White "Haring, Filip"]
[Black "Makkar, Rajat"]
[Result "1-0"]
[ECO "C45"]
[WhiteElo "2432"]
[BlackElo "2453"]
[Annotator "TA"]
[PlyCount "123"]
[EventDate "2024.02.15"]
[EventType "team-tourn"]
[EventCountry "GER"]
[SourceTitle "playchess.com"]
[Source "ChessBase"]
[SourceQuality "1"]
[WhiteTeam "Slovakia"]
[BlackTeam "France"]
[WhiteTeamCountry "SVK"]
[BlackTeamCountry "FRA"]
[TimeControl "40/5400+30:1800+30"]

{[%evp 40,123,137,142,141,139,150,145,138,139,148,154,174,133,139,0,159,177,158,170,160,166,314,212,304,298,308,309,301,316,370,363,349,346,323,349,328,304,315,314,302,281,312,318,345,332,348,349,337,345,345,343,307,306,345,345,425,436,420,395,542,591,550,476,856,805,903,1005,1456,1416,1316,1218,1243,1127,4770,4401,2785,2341,2185,2469,4770,4088,29979,29980,29958,5847]} 1. e4 {[%emt 0:00:08]} e5 {[%emt 0:00:13]} 2. Nf3 {[%emt 0:00:07]} Nc6 {[%emt 0:00:06]} 3. d4 {[%emt 0:00:08]} exd4 {[%emt 0:00:12]} 4. Nxd4 {[%emt 0:00:08]} Nf6 {[%emt 0:00:05]} 5. Nxc6 {[%emt 0:00:36]} bxc6 {[%emt 0:00:05]} 6. Bd3 {[%emt 0:01:43]} d5 {[%emt 0:22:12]} 7. exd5 {[%emt 0:00:13]} cxd5 {[%emt 0:00:21]} 8. O-O {[%emt 0:00:07]} Be7 {[%emt 0:02:07]} 9. h3 {[%emt 0:00:25] C45: Scotch Game.} O-O {[%emt 0:01:05]} 10. Re1 {[%emt 0:00:22]} Bb7 {[%emt 0:11:08]} 11. Nd2 {[%emt 0:01:20]} Ne4 $146 {[%emt 0:07:11]} ({Predecessor:} 11... Re8 12. b3 Ne4 13. Nxe4 dxe4 14. Bb5 c6 15. Bc4 Bf6 16. Rb1 Bc3 17. Qh5 Qc7 {1-0 Gazik,V (2542)-Rogic,D (2492) Mitropa Cup Online 2021 (9.1)}) 12. Nxe4 {[%emt 0:11:40]} dxe4 {[%emt 0:00:14]} 13. Bc4 {[%emt 0:00:04]} Qe8 {[%emt 0:01:06]} 14. Be3 {[%emt 0:07:10]} Kh8 {[%emt 0:06:06]} 15. Qh5 {[%emt 0:02:11]} Bd6 {[%emt 0:06:46]} 16. Rad1 {[%emt 0:09:38]} Qe7 {[%emt 0:03:29]} 17. Qb5 {[%emt 0:05:49]} c6 {[%emt 0:05:32]} 18. Qb3 {[%emt 0:21:54]} Bc7 {[%emt 0:10:04]} 19. Kf1 {[%emt 0:08:31]} Bc8 {[%emt 0:03:37]} 20. Qa4 {[%emt 0:02:15]} Bd7 {[%emt 0:03:35] [#]} 21. Qa3 $1 {[%emt 0:06:16]} (21. Bxa7 $2 Bb6 22. Bb3 Bf5 (22... Bxa7 $2 23. Rxe4 Be6 24. Qb4 $19) (22... Rxa7 $2 23. Qxe4 Qf6 24. Re2 $19) 23. Qxc6 (23. Bxb6 $2 Rxa4 24. Bxa4 Qb4 $19) 23... Qxa7 $19 (23... Bxa7 $2 24. Qd6 $19)) 21... Qxa3 {[%emt 0:03:03]} 22. bxa3 {[%emt 0:00:07]} Bf5 {[%emt 0:06:23]} 23. Bc5 {[%emt 0:00:53]} Rfc8 {[%emt 0:00:01]} 24. Bxf7 {[%emt 0:01:56]} Bb6 {[%emt 0:00:23]} 25. Be3 {[%emt 0:08:42]} Ba5 {[%emt 0:02:11]} 26. Bd2 {[%emt 0:00:23]} Bb6 {[%emt 0:00:00]} 27. Be3 {[%emt 0:03:40]} Ba5 $1 {[%emt 0:00:01]} 28. Re2 {[%emt 0:00:04]} Rd8 {[%emt 0:01:21]} 29. Rxd8+ {[%emt 0:01:03]} Rxd8 {[%emt 0:00:02]} 30. g4 {[%emt 0:00:05]} (30. Bxa7 $2 Rd1+) 30... Bc8 {[%emt 0:00:08]} (30... Rd7 {was called for.} 31. Bb3 Bg6) 31. Bc4 {[%emt 0:00:08]} h5 {[%emt 0:00:04]} (31... Bb7 $142 32. Bc5 (32. Bxa7 c5 $18) 32... Bb6) 32. Bxa7 $18 {[%emt 0:00:39]} (32. gxh5 $2 Bxh3+ 33. Kg1 Bg4 $19) 32... hxg4 {[%emt 0:00:46]} 33. hxg4 {[%emt 0:08:35]} ({Stronger than} 33. Rxe4 Rd1+ 34. Kg2 gxh3+ 35. Kf3 Kh7 $11) 33... Bxg4 {[%emt 0:04:33]} 34. Rxe4 {[%emt 0:00:30]} Bh3+ {[%emt 0:00:17]} 35. Ke2 {[%emt 0:00:00]} g5 {[%emt 0:00:18]} 36. Bd4+ {[%emt 0:00:00]} Kh7 37. Re7+ {[%emt 0:00:12]} Kh6 {[%emt 0:01:55]} 38. Bd3 {[%emt 0:01:48]} Rd7 39. Rxd7 {[%emt 0:00:00]} Bxd7 {[%emt 0:00:32]} 40. Bc5 {[%emt 0:00:03]} g4 {[%emt 0:01:35]} 41. Bb4 {[%emt 0:30:43]} (41. Be3+ Kh5 42. a4 Bc7) 41... Bc7 {[%emt 0:02:28]} 42. a4 {[%emt 0:00:00]} c5 {[%emt 0:00:41]} 43. Bxc5 {[%emt 0:00:00]} (43. Bd2+ Kg7 44. a5 Be6) 43... Bxa4 {[%emt 0:00:27]} 44. Kd2 {[%emt 0:00:00]} Kg5 {[%emt 0:01:02]} 45. Be3+ {[%emt 0:00:00]} Kf6 {[%emt 0:00:58]} 46. Kc3 {[%emt 0:00:00]} Bd6 {[%emt 0:01:05]} 47. Kc4 {[%emt 0:00:00]} Bd7 {[%emt 0:01:09]} 48. Kd5 {[%emt 0:00:00]} Bc7 {[%emt 0:04:09]} 49. c4 {[%emt 0:00:00]} g3 {[%emt 0:00:23]} 50. fxg3 {[%emt 0:00:00]} Bxg3 {[%emt 0:00:03]} 51. Bc5 {[%emt 0:00:00]} Kf7 {[%emt 0:01:22]} (51... Bf4 $142 52. Bd6 Bc1) 52. Bd6 $18 {[%emt 0:00:00]} Be1 {[%emt 0:01:19]} 53. a3 {[%emt 0:00:00]} Bg4 {[%emt 0:23:07]} 54. Kc6 {[%emt 0:00:00]} Bf3+ {[%emt 0:00:00]} 55. Kb6 {[%emt 0:00:00]} Ke6 {[%emt 0:00:00]} 56. c5 {[%emt 0:00:00]} Bh4 {[%emt 0:00:00]} 57. Bb5 {[%emt 0:00:00]} Bd8+ {[%emt 0:00:00]} 58. Bc7 {[%emt 0:00:00]} Be7 {[%emt 0:00:00]} 59. a4 {[%emt 0:00:00]} Bg4 {[%emt 0:00:00]} 60. Bc4+ {[%emt 0:00:00]} Kd7 {[%emt 0:00:00]} 61. c6+ {[%emt 0:00:00]} Ke8 {[%emt 0:00:00]} 62. Kb7 {[%emt 0:00:00]} (62. a5 $142 Bc8 63. a6 Bh4 64. Bd6 Bf2+ 65. Bc5 Bxa6 66. Bxa6 Bg3 67. c7) 1-0

[Event "Mitropa Cup Open 2024"]
[Site "Apolda"]
[Date "2024.02.17"]
[Round "3.11"]
[White "Velten, Paul"]
[Black "Turcan, Richard"]
[Result "1-0"]
[ECO "A61"]
[WhiteElo "2470"]
[BlackElo "2393"]
[Annotator "TA"]
[PlyCount "87"]
[EventDate "2024.02.15"]
[EventType "team-tourn"]
[EventCountry "GER"]
[SourceTitle "playchess.com"]
[Source "ChessBase"]
[SourceQuality "1"]
[WhiteTeam "France"]
[BlackTeam "Slovakia"]
[WhiteTeamCountry "FRA"]
[BlackTeamCountry "SVK"]
[TimeControl "40/5400+30:1800+30"]

{[%evp 18,87,27,31,31,21,33,25,39,14,12,7,0,7,0,0,0,-3,0,0,0,0,0,0,0,0,53,10,97,100,115,85,218,214,222,228,296,308,312,312,311,323,316,331,308,316,422,419,431,443,531,539,573,587,584,590,595,581,763,754,745,699,946,961,6877,6041,29970,29971,29968,29968,29966,29964]} 1. d4 {[%emt 0:00:45]} Nf6 {[%emt 0:00:21]} 2. c4 {[%emt 0:00:22]} e6 {[%emt 0:00:47]} 3. Nf3 {[%emt 0:01:07]} c5 {[%emt 0:00:51]} 4. d5 {[%emt 0:00:35]} exd5 {[%emt 0:00:08]} 5. cxd5 {[%emt 0:00:07]} d6 {[%emt 0:00:10]} 6. Nc3 {[%emt 0:00:59]} g6 {[%emt 0:00:27]} 7. h3 {[%emt 0:01:09]} Bg7 {[%emt 0:00:35]} 8. Bf4 {[%emt 0:00:29]} O-O {[%emt 0:02:05]} 9. e3 {[%emt 0:00:22]} a6 {[%emt 0:04:34]} 10. a4 {[%emt 0:01:34]} Ne8 {[%emt 0:06:07]} 11. a5 {[%emt 0:01:26]} Nd7 {[%emt 0:04:08]} 12. Be2 {[%emt 0:01:25]} Ne5 {[%emt 0:10:58] White has an edge.} 13. Nxe5 {[%emt 0:05:25]} dxe5 {[%emt 0:04:42]} 14. Bh2 {[%emt 0:10:54]} Nd6 {[%emt 0:03:18]} 15. O-O {[%emt 0:08:17]} Bd7 {[%emt 0:06:05]} 16. Qb3 {[%emt 0:01:42]} Rc8 {[%emt 0:08:31]} 17. Rfc1 {[%emt 0:02:27]} f5 {[%emt 0:06:28]} 18. Na4 {[%emt 0:04:40]} Bxa4 {[%emt 0:02:08]} 19. Qxa4 {[%emt 0:00:14]} Rf7 {[%emt 0:05:35]} 20. Rc2 {[%emt 0:01:17]} Rfc7 {[%emt 0:02:15]} 21. Rac1 {[%emt 0:00:34]} Qe7 {[%emt 0:11:10]} (21... h5 $11) 22. Qb3 {[%emt 0:02:18]} Nf7 {[%emt 0:03:26]} (22... Kf8 $11 {remains equal.}) 23. Qb6 $16 {[%emt 0:02:45]} Qd6 {[%emt 0:01:25]} 24. e4 {[%emt 0:08:46] White is more active.} Bh6 {[%emt 0:01:33] [#] This move loses the game for Black.} (24... c4 $16) 25. Qxd6 $1 $18 {[%emt 0:00:28]} Nxd6 {[%emt 0:00:10]} 26. Bxe5 $1 {[%emt 0:00:16]} Bxc1 {[%emt 0:03:28]} 27. Bxd6 {[%emt 0:00:06] This pair of bishops is nice.} Rd7 {[%emt 0:00:12]} 28. Rxc1 {[%emt 0:00:07]} (28. Rxc5 Re8 (28... Rxc5 29. Bxc5 Bxb2 30. exf5 $15) 29. Rxc1 Rxd6 $17) (28. Bxc5 Bxb2 29. d6 Be5 $15) (28. e5 Bg5 $16) 28... Rxd6 {[%emt 0:00:22][%mdl 4096] Endgame. [#] KRR-KRB} 29. e5 {[%emt 0:00:03]} Rdd8 {[%emt 0:07:08]} (29... Rxd5 $2 30. Bc4 $18) 30. d6 {[%emt 0:01:35]} c4 {[%emt 0:03:20]} 31. Bxc4+ {[%emt 0:01:23]} Kg7 {[%emt 0:00:05]} 32. b3 {[%emt 0:00:17]} Rc6 {[%emt 0:03:17]} 33. f4 {[%emt 0:00:50]} b5 {[%emt 0:00:34]} 34. axb6 {[%emt 0:00:05]} Rb8 {[%emt 0:00:33]} 35. Rd1 {[%emt 0:00:27]} Rcxb6 {[%emt 0:00:19]} 36. Kf2 {[%emt 0:00:39]} a5 {[%emt 0:00:36]} 37. g4 {[%emt 0:00:23]} fxg4 {[%emt 0:00:21]} 38. hxg4 {[%emt 0:00:06] e6 would now be deadly.} a4 {[%emt 0:00:36]} 39. bxa4 {[%emt 0:00:26] And now e6 would win.} Rb4 {[%emt 0:00:39]} 40. Rd4 {[%emt 0:00:51]} Rc8 {[%emt 0:00:31] [#]} 41. e6 $1 {[%emt 0:33:04][%cal Be5e6,Be6e7][%mdl 32] White wants to mate with d7.} Rcxc4 {[%emt 0:07:49]} (41... Kf6 42. g5+) 42. Rxc4 {[%emt 0:00:00] White mates.} (42. e7 Kf7 (42... Rxd4 $2 {is the wrong capture.} 43. e8=Q $18) 43. d7 Rb2+ 44. Ke3 (44. Kg3 {gets mated.} Rc3+) 44... Rc3+ 45. Ke4 Re2+ (45... Kxe7 46. d8=Q+ Kf7 47. Rd7+ Ke6 48. Qe7#) 46. Kd5 Kxe7 $19) 42... Rxc4 {[%emt 0:00:04]} 43. d7 {[%emt 0:00:00]} Rd4 {[%emt 0:00:06]} 44. e7 {[%emt 0:00:00] Weighted Error Value: White=0.04 (flawless) /Black=0.47.  Mistake:       	---       	Black=3      Inaccurate:     	White=1     	Black=2      OK:         	White=15    	Black=8      Best:        	White=3     	Black=2      Strong:       	White=2     	---} 1-0